fUST/lending_fUST_20250414
["ID","MTS","AMOUNT","RATE_DAILY","PERIOD"]
[357952464,1744614642874,-500.0,0.00027397,2]
[357952467,1744614642885,-1373.47,0.00027397,2]
[357952469,1744614642894,-500.0,0.00027397,2]
[357952471,1744614642904,-500.0,0.00027397,2]
[357952473,1744614642914,-1911.79,0.00027397,2]
[357952475,1744614642923,-500.0,0.00027397,2]
[357952477,1744614642933,-500.0,0.00027397,2]
[357952479,1744614642943,-7833.61,0.00027397,2]
[357952481,1744614642953,-5455.95,0.00027397,2]
[357952483,1744614642964,-500.0,0.00027397,2]
[357952485,1744614642976,-500.0,0.00027397,2]
[357952487,1744614642986,-500.0,0.00027397,2]
[357952489,1744614642996,-500.0,0.00027397,2]
[357952491,1744614643006,-515.90638551,0.00027397,2]
[357952493,1744614643015,-500.0,0.00027397,2]
[357952495,1744614643025,-500.0,0.00027397,2]
[357952497,1744614643035,-500.0,0.00027397,2]
[357952499,1744614643046,-1958.52,0.00027397,2]
[357952501,1744614643055,-500.0,0.00027397,2]
[357952503,1744614643065,-500.0,0.00027397,2]
[357952505,1744614643075,-500.0,0.00027397,2]
[357952507,1744614643084,-500.0,0.00027397,2]
[357952508,1744614643094,-500.0,0.00027397,2]
[357952510,1744614643104,-587.87,0.00027397,2]
[357952512,1744614643114,-500.0,0.00027397,2]
[357952514,1744614643124,-500.0,0.00027397,2]
[357952516,1744614643134,-611.11,0.00027397,2]
[357952518,1744614643144,-500.0,0.00027397,2]
[357952520,1744614643154,-1487.3,0.00027397,2]
[357952522,1744614643164,-500.0,0.00027397,2]
[357952524,1744614643174,-151.0,0.00027397,2]
[357952526,1744614643183,-2110.01,0.00027397,2]
[357952528,1744614643193,-500.0,0.00027397,2]
[357952530,1744614643203,-500.0,0.00027397,2]
[357952532,1744614643213,-500.0,0.00027397,2]
[357952534,1744614643223,-500.0,0.00027397,2]
[357952536,1744614643233,-151.0,0.00027397,2]
[357952538,1744614643243,-1407.97,0.00027397,2]
[357952540,1744614643253,-500.0,0.00027397,2]
[357952542,1744614643263,-500.0,0.00027397,2]
[357952558,1744614643408,-500.0,0.00027397,2]
[357952560,1744614643419,-151.0,0.00027397,2]
[357952562,1744614643429,-500.0,0.00027397,2]
[357952564,1744614643439,-500.0,0.00027397,2]
[357952566,1744614643449,-500.0,0.00027397,2]
[357952568,1744614643459,-500.0,0.00027397,2]
[357952570,1744614643468,-500.0,0.00027397,2]
[357952573,1744614643480,-590.12966698,0.00027397,2]
[357952576,1744614643491,-1486.05,0.00027397,2]
[357952579,1744614643501,-1750.57,0.00027397,2]
[357952582,1744614643511,-500.0,0.00027397,2]
[357952584,1744614643520,-500.0,0.00027397,2]
[357952586,1744614643530,-2351.7,0.00027397,2]
[357952588,1744614643539,-450.18079945,0.00027397,2]
[357952592,1744614643550,-500.0,0.00027397,2]
[357952595,1744614643560,-511.14,0.00027397,2]
[357952598,1744614643569,-500.0,0.00027397,2]
[357952601,1744614643579,-534.18304748,0.00027397,2]
[357952604,1744614643589,-881.0,0.00027397,2]
[357952607,1744614643600,-1741.15,0.00027397,2]
[357952610,1744614643610,-2082.72,0.00027397,2]
[357952613,1744614643619,-500.0,0.00027397,2]
[357952615,1744614643629,-216.7058284,0.00027397,2]
[357952617,1744614643639,-500.0,0.00027397,2]
[357952619,1744614643649,-500.0,0.00027397,2]
[357952621,1744614643659,-500.0,0.00027397,2]
[357952623,1744614643669,-566.03,0.00027397,2]
[357952625,1744614643679,-500.0,0.00027397,2]
[357952627,1744614643689,-630.57,0.00027397,2]
[357952629,1744614643699,-500.0,0.00027397,2]
[357952631,1744614643709,-500.0,0.00027397,2]
[357952633,1744614643719,-1773.42,0.00027397,2]
[357952635,1744614643728,-5696.12,0.00027397,2]
[357952636,1744614643738,-500.0,0.00027397,2]
[357952637,1744614643748,-500.0,0.00027397,2]
[357952638,1744614643757,-500.0,0.00027397,2]
[357952639,1744614643776,-500.0,0.00027397,2]
[357952640,1744614643788,-500.0,0.00027397,2]
[357952641,1744614643799,-500.0,0.00027397,2]
[357952642,1744614643809,-506.63155745,0.00027397,2]
[357952643,1744614643819,-5106.7,0.00027397,2]
[357952644,1744614643830,-560.77435312,0.00027397,2]
[357952645,1744614643840,-1276.99,0.00027397,2]
[357952646,1744614643851,-500.0,0.00027397,2]
[357952647,1744614643861,-500.0,0.00027397,2]
[357952648,1744614643871,-500.0,0.00027397,2]
[357952649,1744614643882,-500.0,0.00027397,2]
[357952650,1744614643892,-500.0,0.00027397,2]
[357952651,1744614643902,-699.9,0.00027397,2]
[357952652,1744614643913,-500.0,0.00027397,2]
[357952654,1744614643923,-533.87355951,0.00027397,2]
[357952656,1744614643933,-500.0,0.00027397,2]
[357952658,1744614643943,-2452.75,0.00027397,2]
[357952660,1744614643954,-500.0,0.00027397,2]
[357952662,1744614643964,-500.0,0.00027397,2]
[357952664,1744614643974,-500.0,0.00027397,2]
[357952666,1744614643984,-500.0,0.00027397,2]
[357952668,1744614643994,-8642.73,0.00027397,2]
[357952670,1744614644005,-500.0,0.00027397,2]
[357952672,1744614644016,-8642.73,0.00027397,2]
[357952675,1744614644030,-8642.73,0.00027397,2]
[357952677,1744614644042,-8642.73,0.00027397,2]
[357952679,1744614644052,-8642.73,0.00027397,2]
[357952681,1744614644063,-8642.73,0.00027397,2]
[357952683,1744614644074,-500.0,0.00027397,2]
[357952685,1744614644084,-8642.73,0.00027397,2]
[357952687,1744614644095,-8642.73,0.00027397,2]
[357952689,1744614644105,-8642.73,0.00027397,2]
[357952691,1744614644116,-8642.73,0.00027397,2]
[357952693,1744614644126,-8642.73,0.00027397,2]
[357952695,1744614644136,-513.69186594,0.00027397,2]
[357952697,1744614644147,-500.0,0.00027397,2]
[357952699,1744614644157,-8642.73,0.00027397,2]
[357952701,1744614644167,-151.79044605,0.00027397,2]
[357952703,1744614644176,-8642.73,0.00027397,2]
[357952705,1744614644186,-8642.73,0.00027397,2]
[357952708,1744614644197,-8642.73,0.00027397,2]
[357952710,1744614644207,-8642.73,0.00027397,2]
[357952712,1744614644216,-2344.54,0.00027397,2]
[357952714,1744614644226,-151.68049729,0.00027397,2]
[357952716,1744614644235,-8642.73,0.00027397,2]
[357952718,1744614644245,-8642.73,0.00027397,2]
[357952720,1744614644256,-8642.73,0.00027397,2]
[357952722,1744614644265,-8642.73,0.00027397,2]
[357952724,1744614644275,-8642.73,0.00027397,2]
[357952726,1744614644285,-8642.73,0.00027397,2]
[357952728,1744614644297,-8642.73,0.00027397,2]
[357952730,1744614644307,-500.0,0.00027397,2]
[357952732,1744614644317,-8642.80727146,0.00027397,2]
[357952734,1744614644327,-500.0,0.00027397,2]
[357952736,1744614644337,-308.77223995,0.00027397,2]
[357952738,1744614644347,-2575.98,0.00027397,2]
[357952740,1744614644357,-500.0,0.00027397,2]
[357952743,1744614644367,-500.0,0.00027397,2]
[357952745,1744614644376,-500.0,0.00027397,2]
[357952747,1744614644390,-500.0,0.00027397,2]
[357952749,1744614644404,-500.0,0.00027397,2]
[357952751,1744614644415,-500.0,0.00027397,2]
[357952753,1744614644425,-500.0,0.00027397,2]
[357952755,1744614644435,-500.0,0.00027397,2]
[357952757,1744614644446,-500.0,0.00027397,2]
[357952759,1744614644456,-976.58,0.00027397,2]
[357952762,1744614644466,-574.47370298,0.00027397,2]
[357952764,1744614644476,-500.0,0.00027397,2]
[357952766,1744614644487,-500.0,0.00027397,2]
[357952768,1744614644497,-1092.39,0.00027397,2]
[357952770,1744614644508,-500.0,0.00027397,2]
[357952772,1744614644518,-1599.92,0.00027397,2]
[357952774,1744614644529,-1312.72,0.00027397,2]
[357952776,1744614644543,-732.71,0.00027397,2]
[357952778,1744614644553,-7092.47,0.00027397,2]
[357952780,1744614644563,-500.0,0.00027397,2]
[357952782,1744614644573,-500.0,0.00027397,2]
[357952784,1744614644584,-554.53,0.00027397,2]
[357952786,1744614644594,-502.51326829,0.00027397,2]
[357952788,1744614644604,-500.0,0.00027397,2]
[357952790,1744614644614,-900.84,0.00027397,2]
[357952792,1744614644624,-500.0,0.00027397,2]
[357952794,1744614644634,-500.0,0.00027397,2]
[357952796,1744614644644,-500.0,0.00027397,2]
[357952798,1744614644654,-1883.78,0.00027397,2]
[357952800,1744614644664,-500.0,0.00027397,2]
[357952802,1744614644674,-207.28814467,0.00027397,2]
[357952804,1744614644684,-410.66328412,0.00027397,2]
[357952806,1744614644694,-2159.26,0.00027397,2]
[357952808,1744614644705,-561.76745987,0.00027397,2]
[357952810,1744614644715,-500.0,0.00027397,2]
[357952812,1744614644725,-7606.28,0.00027397,2]
[357952814,1744614644735,-638.25,0.00027397,2]
[357952816,1744614644746,-619.58984602,0.00027397,2]
[357952818,1744614644755,-500.0,0.00027397,2]
[357952820,1744614644766,-500.0,0.00027397,2]
[357952822,1744614644775,-500.0,0.00027397,2]
[357952824,1744614644785,-500.0,0.00027397,2]
[357952826,1744614644798,-557.37535389,0.00027397,2]
[357952829,1744614644808,-500.0,0.00027397,2]
[357952831,1744614644818,-500.0,0.00027397,2]
[357952833,1744614644828,-500.0,0.00027397,2]
[357952835,1744614644839,-517.92,0.00027397,2]
[357952837,1744614644849,-774.63,0.00027397,2]
[357952839,1744614644858,-500.0,0.00027397,2]
[357952841,1744614644870,-500.0,0.00027397,2]
[357952843,1744614644881,-500.0,0.00027397,2]
[357952845,1744614644891,-500.0,0.00027397,2]
[357952847,1744614644901,-500.0,0.00027397,2]
[357952849,1744614644911,-502.37984005,0.00027397,2]
[357952851,1744614644921,-500.0,0.00027397,2]
[357952853,1744614644931,-500.0,0.00027397,2]
[357952855,1744614644941,-500.0,0.00027397,2]
[357952857,1744614644950,-500.0,0.00027397,2]
[357952859,1744614644960,-700.5,0.00027397,2]
[357952861,1744614644970,-500.0,0.00027397,2]
[357952863,1744614644981,-500.0,0.00027397,2]
[357952865,1744614644990,-500.0,0.00027397,2]
[357952867,1744614645000,-219.59325818,0.00027397,2]
[357952869,1744614645010,-16568.51,0.00027397,2]
[357952871,1744614645020,-500.0,0.00027397,2]
[357952873,1744614645030,-500.0,0.00027397,2]
[357952875,1744614645040,-448.40838483,0.00027397,2]
[357952877,1744614645050,-500.0,0.00027397,2]
[357952879,1744614645060,-500.0,0.00027397,2]
[357952881,1744614645071,-500.0,0.00027397,2]
[357952883,1744614645085,-500.0,0.00027397,2]
[357952885,1744614645094,-500.0,0.00027397,2]
[357952887,1744614645104,-560.44,0.00027397,2]
[357952889,1744614645114,-229.47249726,0.00027397,2]
[357952892,1744614645126,-500.0,0.00027397,2]
[357952894,1744614645136,-354.09383018,0.00027397,2]
[357952896,1744614645146,-500.0,0.00027397,2]
[357952898,1744614645157,-500.0,0.00027397,2]
[357952900,1744614645167,-1269.31,0.00027397,2]
[357952902,1744614645177,-500.0,0.00027397,2]
[357952904,1744614645186,-753.23,0.00027397,2]
[357952906,1744614645201,-500.0,0.00027397,2]
[357952908,1744614645211,-500.0,0.00027397,2]
[357952910,1744614645221,-584.76,0.00027397,2]
[357952912,1744614645231,-500.0,0.00027397,2]
[357952914,1744614645241,-500.0,0.00027397,2]
[357952916,1744614645251,-500.0,0.00027397,2]
[357952918,1744614645261,-500.0,0.00027397,2]
[357952920,1744614645271,-500.0,0.00027397,2]
[357952922,1744614645280,-500.0,0.00027397,2]
[357952924,1744614645290,-1348.7,0.00027397,2]
[357952926,1744614645300,-690.6,0.00027397,2]
[357952928,1744614645310,-527.58795468,0.00027397,2]
[357952930,1744614645320,-500.0,0.00027397,2]
[357952932,1744614645330,-802.63,0.00027397,2]
[357952934,1744614645340,-500.0,0.00027397,2]
[357952936,1744614645350,-500.0,0.00027397,2]
[357952938,1744614645360,-500.0,0.00027397,2]
[357952940,1744614645370,-500.0,0.00027397,2]
[357952942,1744614645379,-1818.23,0.00027397,2]
[357952944,1744614645390,-500.0,0.00027397,2]
[357952946,1744614645403,-500.0,0.00027397,2]
[357952948,1744614645413,-5650.13,0.00027397,2]
[357952950,1744614645423,-597.00277131,0.00027397,2]
[357952952,1744614645433,-16441.7,0.00027397,2]
[357952954,1744614645442,-500.0,0.00027397,2]
[357952956,1744614645452,-500.0,0.00027397,2]
[357952958,1744614645462,-500.0,0.00027397,2]
[357952960,1744614645473,-500.0,0.00027397,2]
[357952962,1744614645482,-500.0,0.00027397,2]
[357952964,1744614645491,-500.0,0.00027397,5]
[357952966,1744614645502,-151.0,0.00027452,2]
[357952968,1744614645512,-151.0,0.00027452,2]
[357952970,1744614645521,-500.0,0.00027452,2]
[357952972,1744614645531,-500.0,0.00027452,2]
[357952974,1744614645540,-500.0,0.00027452,2]
[357952976,1744614645551,-500.0,0.00027452,2]
[357952979,1744614645561,-500.0,0.00027452,2]
[357952981,1744614645571,-500.0,0.00027452,2]
[357952983,1744614645580,-500.0,0.00027452,2]
[357952985,1744614645590,-500.0,0.00027452,2]
[357952987,1744614645599,-500.0,0.00027452,2]
[357952989,1744614645609,-500.0,0.00027452,2]
[357952991,1744614645619,-500.0,0.00027452,2]
[357952993,1744614645629,-151.0,0.00027507,2]
[357952995,1744614645639,-151.0,0.00027507,2]
[357952997,1744614645648,-500.0,0.00027507,2]
[357952999,1744614645659,-351.83738305,0.00027507,2]
[357953001,1744614645669,-500.0,0.00027507,2]
[357953003,1744614645680,-201.6107025,0.00027507,2]
[357953006,1744614645689,-500.0,0.00027507,2]
[357953007,1744614645699,-500.0,0.00027507,2]
[357953010,1744614645710,-351.92912806,0.00027507,2]
[357953012,1744614645720,-349.0,0.00027507,2]
[357953014,1744614645730,-500.0,0.00027507,2]
[357953016,1744614645741,-500.0,0.00027507,2]
[357953018,1744614645751,-353.72513193,0.00027507,2]
[357953020,1744614645760,-151.0,0.00027561,2]
[357953022,1744614645770,-151.0,0.00027561,2]
[357953025,1744614645788,-500.0,0.00027561,2]
[357953027,1744614645805,-151.0,0.00027616,2]
[357953030,1744614645816,-151.0,0.00027616,2]
[357953032,1744614645827,-500.0,0.00027616,2]
[357953034,1744614645839,-245.0,0.00027671,2]
[357953036,1744614645850,-245.0,0.00027671,2]
[357953038,1744614645861,-500.0,0.00027671,2]
[357953041,1744614645873,-250.0,0.00027677,2]
[357953043,1744614645883,-500.0,0.00027726,2]
[357953044,1744614645894,-500.0,0.00027781,2]
[357953047,1744614645905,-500.0,0.00027835,2]
[357953049,1744614645915,-512.8693977,0.0002789,2]
[357953051,1744614645925,-420.0,0.0002832,2]
[357953053,1744614645936,-420.0,0.00028446,2]
[357953055,1744614645946,-500.0,0.00028865,2]
[357953057,1744614645956,-160.0,0.00029,10]
[357953059,1744614645966,-475.1,0.0003,2]
[357953061,1744614645976,-159.0,0.0003,2]
[357953062,1744614645985,-180.0,0.00030643,2]
[357953065,1744614645995,-587.0,0.00030917,2]
[357953067,1744614646005,-1000.0,0.00032652,5]
[357953068,1744614646016,-1000.0,0.00032852,5]
[357953070,1744614646026,-1107.22565903,0.00032852,5]
[357953073,1744614646037,-1000.0,0.00032852,5]
[357953075,1744614646050,-1000.0,0.00032852,5]
[357953094,1744614646204,-316.55914412,0.00032852,5]
[357953096,1744614646230,-1000.0,0.00032852,5]
[357953098,1744614646241,-1114.56723087,0.00032852,5]
[357953100,1744614646251,-1001.87518054,0.00032852,5]
[357953102,1744614646261,-532.03138903,0.00032852,5]
[357953104,1744614646271,-1000.0,0.00032852,5]
[357953106,1744614646280,-501.99652361,0.00032852,5]
[357953108,1744614646291,-1000.0,0.00032852,5]
[357953111,1744614646301,-500.0,0.00032876,120]
[357953113,1744614646311,-1000.0,0.00032877,5]
[357953114,1744614646325,-159.0,0.00033,2]
[357953116,1744614646335,-159.0,0.00033,2]
[357953119,1744614646345,-823.0,0.00033602,3]
[357953120,1744614646354,-1000.0,0.00035616,2]
[357953123,1744614646364,-159.0,0.00036,2]
[357953125,1744614646374,-159.0,0.00036,2]
[357953128,1744614646384,-159.0,0.00036,2]
[357953131,1744614646397,-1152.0,0.00036521,3]
[357953134,1744614646407,-527.48474704,0.0003819,14]
[357953137,1744614646417,-166.0,0.00038356,2]
[357953140,1744614646427,-200.0,0.00038356,5]
[357953142,1744614646436,-1500.0,0.00038356,5]
[357953144,1744614646446,-153.0,0.00038356,30]
[357953146,1744614646455,-306.0,0.00038356,30]
[357953148,1744614646466,-153.0,0.00038356,30]
[357953151,1744614646477,-153.0,0.00038356,30]
[357953154,1744614646487,-153.0,0.00038356,30]
[357953157,1744614646497,-151.0,0.000387,11]
[357953160,1744614646507,-1000.0,0.00039,120]
[357953162,1744614646518,-159.0,0.00039,2]
[357953164,1744614646528,-159.0,0.00039,2]
[357953166,1744614646538,-153.0,0.00039178,30]
[357953168,1744614646554,-153.0,0.00039178,30]
[357953170,1744614646564,-249.757582,0.000395,4]
[357953173,1744614646575,-1613.0,0.00039693,5]
[357953174,1744614646585,-200.0,0.000398,60]
[357953176,1744614646596,-499999.0,0.00039899,2]
[357953179,1744614646607,-183.66314054,0.00039899,2]
[357953181,1744614646618,-176.69761266,0.00039899,2]
[357953183,1744614646629,-5000.0,0.000399,120]
[357953185,1744614646639,-800.0,0.00039916,7]
[357953187,1744614646651,-500.0,0.00039973,5]
[357953189,1744614646665,-500.0,0.00039973,5]
[357953190,1744614646680,-515.76728843,0.00039973,5]
[357953193,1744614646697,-446.16725797,0.00039999,31]
[357953195,1744614646707,-236.8586859,0.00039999,31]
[357953197,1744614646717,-200.0,0.00039999,31]
[357953199,1744614646727,-58521.94955201,0.0004,2]
[357953201,1744614646737,-214.23443269,0.0004,3]
[357953203,1744614646747,-1538688.93111381,0.0004,30]
[357953207,1744614646780,-16990.02840374,0.0004,30]
[357953209,1744614646795,-2581.42378065,0.0004,30]
[357953211,1744614646807,-119144.74133273,0.0004,30]
[357953229,1744614646971,-572.325,0.0004,30]
[357953253,1744614647194,-5713.91643137,0.0004,30]
[357953263,1744614647288,-18266.67842112,0.0004,30]
[357953384,1744615291358,700.34,0.00018,2]
[357953401,1744615695753,409.24081437,0.0001399,2]
[357953402,1744615717014,668.66938436,0.0001,7]
[357953410,1744615803176,199.062246,0.00015001,2]
[357953439,1744615832507,-209.57384915,0.00022,2]
[357953440,1744615832517,-99.0523357,0.00023999,2]
[357953441,1744615832528,-200.9476643,0.00023999,2]
[357953442,1744615832538,-128.85731904,0.00023999,2]
[357953444,1744615832656,-171.14268096,0.00023999,2]
[357953446,1744615832667,-17274.34334294,0.00024,2]
[357953448,1744615832677,-1000.0,0.00025883,2]
[357953451,1744615832687,-782.42274119,0.00025883,2]
[357953454,1744615832697,-1000.0,0.00025964,2]
[357953456,1744615832708,-500.0,0.00025999,2]
[357953457,1744615832719,-500.0,0.00025999,2]
[357953458,1744615832730,-500.0,0.00025999,2]
[357953459,1744615832740,-500.0,0.00025999,2]
[357953460,1744615832751,-500.0,0.00025999,2]
[357953461,1744615832762,-500.0,0.00025999,2]
[357953462,1744615832775,-500.0,0.00025999,2]
[357953463,1744615832786,-500.0,0.00025999,2]
[357953464,1744615832796,-500.0,0.00025999,2]
[357953465,1744615832806,-500.0,0.00025999,2]
[357953466,1744615832817,-500.0,0.00025999,2]
[357953467,1744615832827,-500.0,0.00025999,2]
[357953468,1744615832838,-500.0,0.00025999,2]
[357953469,1744615832850,-500.0,0.00025999,2]
[357953470,1744615832860,-500.0,0.00025999,2]
[357953471,1744615832871,-500.0,0.00025999,2]
[357953472,1744615832881,-160.0,0.00026,2]
[357953473,1744615832891,-420.0,0.00026026,2]
[357953474,1744615832901,-420.0,0.00026145,2]
[357953475,1744615832911,-500.0,0.00027073,2]
[357953476,1744615832921,-173.39893964,0.00027096,2]
[357953477,1744615832931,-7859.70816139,0.00027097,2]
[357953522,1744615838616,-370.47654706,0.00025999,2]
[357953524,1744615838626,-390.15582027,0.00025999,2]
[357953526,1744615838639,-109.84417973,0.00025999,2]
[357953529,1744615838648,-500.0,0.00025999,2]
[357953531,1744615838658,-43.97718008,0.00025999,2]
[357953545,1744615838793,-406.84179445,0.00025999,2]
[357953547,1744615838803,-500.0,0.00025999,2]
[357953549,1744615838814,-9699.5120829,0.00027097,2]
[357953552,1744615838826,-1833.12639007,0.00027097,2]
[357954003,1744615843873,-113856.79601502,0.00027097,2]
[357954004,1744615843885,-18207.9255071,0.00027097,2]
[357954005,1744615844035,-553.30790819,0.00027097,2]
[357954253,1744615846609,-19631.106172,0.00027097,2]
[357955237,1744617032622,-740.5920688,0.00025764,2]
[357955238,1744617032632,-1000.0,0.0002582,2]
[357955239,1744617032643,-1000.0,0.000259,2]
[357955240,1744617032652,-160.0,0.00026,2]
[357955241,1744617032663,-570.49752311,0.00026896,2]
[357955242,1744617032673,-152.79832386,0.00026897,2]
[357955243,1744617032683,-239.60344569,0.000269,7]
[357955244,1744617032693,-300.0,0.00026993,2]
[357955245,1744617032703,-300.0,0.00026993,2]
[357955246,1744617032712,-500.0,0.00026994,2]
[357955247,1744617032722,-500.0,0.00026994,2]
[357955248,1744617032732,-500.0,0.00026994,2]
[357955249,1744617032742,-500.40948726,0.00026994,2]
[357955250,1744617032753,-500.0,0.00026994,2]
[357955251,1744617032762,-500.0,0.00026994,2]
[357955252,1744617032772,-507.58390632,0.00026994,2]
[357955253,1744617032782,-500.0,0.00026995,2]
[357955254,1744617032792,-500.0,0.00026995,2]
[357955255,1744617032804,-500.0,0.00026995,2]
[357955256,1744617032814,-500.0,0.00026995,2]
[357955257,1744617032824,-500.0,0.00026995,2]
[357955258,1744617032834,-500.0,0.00026995,2]
[357955259,1744617032845,-500.0,0.00026995,2]
[357955260,1744617032855,-500.0,0.00026995,2]
[357955261,1744617032865,-500.0,0.00026995,2]
[357955262,1744617032875,-300.69868609,0.00026995,2]
[357955263,1744617032884,-500.0,0.00026995,2]
[357955264,1744617032894,-500.0,0.00026995,2]
[357955265,1744617032905,-500.0,0.00026995,2]
[357955266,1744617032917,-500.0,0.00026995,2]
[357955267,1744617032935,-500.0,0.00026995,2]
[357955268,1744617032951,-445.90087197,0.00026995,2]
[357955269,1744617032964,-500.0,0.00026995,2]
[357955270,1744617032980,-276.85090575,0.00026995,2]
[357955271,1744617033002,-223.14909425,0.00026995,2]
[357955272,1744617033018,-298.46805689,0.00026995,2]
[357955328,1744617038877,-201.53194311,0.00026995,2]
[357955330,1744617038887,-500.40948726,0.00026995,2]
[357955332,1744617038897,-500.0,0.00026995,2]
[357955334,1744617038907,-500.0,0.00026995,2]
[357955336,1744617038917,-507.58390632,0.00026995,2]
[357955338,1744617038927,-500.0,0.00026995,2]
[357955340,1744617038937,-500.0,0.00026995,2]
[357955342,1744617038947,-500.0,0.00026995,2]
[357955344,1744617038957,-500.40948726,0.00026995,2]
[357955346,1744617038967,-500.0,0.00026995,2]
[357955348,1744617038978,-500.0,0.00026995,2]
[357955350,1744617038987,-507.58390632,0.00026995,2]
[357955352,1744617038997,-171.61307497,0.00026996,2]
[357955354,1744617039006,-20515.5191706,0.00026996,2]
[357955356,1744617039018,-3597.75664121,0.00026996,2]
[357955358,1744617039030,-19981.93349332,0.00026996,2]
[357955360,1744617039039,-214.23443269,0.00026996,3]
[357955362,1744617039049,-125259.30334989,0.00026997,2]
[357955365,1744617039061,-100342.941879,0.00026997,2]
[357955710,1744617042596,-0.00859684,0.00026997,2]
[357955850,1744617044383,-9198.95223492,0.00026997,2]
[357955919,1744617046688,-902.97666268,0.00026997,2]
[357956618,1744618011352,-184.0305421,0.00023,12]
[357956619,1744618055230,-164.9835011,0.00023,12]
[357956620,1744618084557,-164.24057411,0.00023,12]
[357956622,1744618203463,-297.16740493,0.00023,12]
[357956653,1744618232714,-379.03108366,0.00023,12]
[357956655,1744618232724,-1000.0,0.00025,2]
[357956656,1744618232734,-500.0,0.00025205,2]
[357956658,1744618232744,-399.75581668,0.00025205,2]
[357956660,1744618232753,-1000.0,0.00025649,2]
[357956662,1744618232763,-160.52460229,0.00025664,2]
[357956665,1744618232775,-839.47539771,0.00025664,2]
[357956667,1744618232785,-161.06647355,0.00026794,2]
[357956669,1744618232798,-161.06647351,0.00026795,2]
[357956671,1744618232807,-704.94736942,0.00026795,2]
[357956673,1744618232817,-161.06647351,0.00026796,2]
[357956675,1744618232827,-247.18297428,0.00026796,2]
[357956677,1744618232838,-161.06647351,0.00026796,2]
[357956679,1744618232848,-161.06647351,0.00026797,2]
[357956682,1744618232858,-300.0,0.00026847,2]
[357956685,1744618232868,-300.0,0.00026848,2]
[357956688,1744618232877,-152.0,0.0002688,2]
[357956691,1744618232887,-369.57131461,0.00026886,2]
[357956694,1744618232896,-33811.42367845,0.00026887,2]
[357956698,1744618232908,-107362.72115455,0.00026887,2]
[357956701,1744618232918,-200.0,0.00026896,10]
[357956704,1744618232927,-308.911802,0.00026896,10]
[357956707,1744618232937,-30673.71647255,0.00026896,2]
[357956710,1744618232947,-370000.0,0.00026897,2]
[357956713,1744618232957,-239.60344568,0.000269,7]
[357956717,1744618232967,-160.0,0.00026973,2]
[357956720,1744618232976,-5031.11795519,0.00027,2]
[357956723,1744618232986,-30000.0,0.00027,2]
[357956726,1744618232995,-250.0,0.00027071,2]
[357956729,1744618233005,-20167.7349761,0.00027363,2]
[357956732,1744618233016,-500.0,0.00027373,2]
[357956735,1744618233026,-373.55543027,0.00027373,2]
[357956738,1744618233036,-158.54892189,0.00027373,2]
[357956741,1744618233046,-160.04938487,0.00027373,2]
[357956743,1744618233056,-500.0,0.00027373,2]
[357956745,1744618233066,-439.13549976,0.00027373,2]
[357956747,1744618233076,-500.0,0.00027373,2]
[357956749,1744618233086,-500.0,0.00027373,2]